[Event "*** Titled Tuesday Blitz"]
[Site "Chess.com"]
[Date "2020.03.03"]
[Round "7"]
[White "Rodalquilar"]
[Black "Azeryahu"]
[Result "0-1"]
[WhiteElo "2613"]
[BlackElo "2808"]
[TimeControl "180+1"]
[EndTime "14:15:31 PST"]
[Termination "Azeryahu won by checkmate"]

1. d4 {[%clk 0:03:00.9]} 1... d5 {[%clk 0:03:00]} 2. Bf4 {[%clk 0:03:01]} 2...
Bf5 {[%clk 0:02:59.2]} 3. c4 {[%clk 0:03:00.4]} 3... e6 {[%clk 0:02:55.1]} 4.
Nc3 {[%clk 0:03:00.2]} 4... Nf6 {[%clk 0:02:48.7]} 5. e3 {[%clk 0:03:00.5]} 5...
c6 {[%clk 0:02:43.6]} 6. Qb3 {[%clk 0:03:00.6]} 6... Qe7 {[%clk 0:02:23.9]} 7.
c5 {[%clk 0:02:56.4]} 7... Qd7 {[%clk 0:02:01.6]} 8. Nf3 {[%clk 0:02:55.7]} 8...
Be7 {[%clk 0:02:01.7]} 9. h3 {[%clk 0:02:52.2]} 9... h6 {[%clk 0:02:01.4]} 10.
a4 {[%clk 0:02:22.9]} 10... a5 {[%clk 0:01:47.5]} 11. Nb5 {[%clk 0:01:48.8]}
11... Na6 {[%clk 0:01:45.4]} 12. Nd6+ {[%clk 0:01:46.6]} 12... Bxd6 {[%clk
0:01:45.2]} 13. Bxd6 {[%clk 0:01:47.5]} 13... Nb4 {[%clk 0:01:43]} 14. Ne5
{[%clk 0:01:42.8]} 14... Qd8 {[%clk 0:01:33.1]} 15. g4 {[%clk 0:01:42.8]} 15...
Bc2 {[%clk 0:01:03.4]} 16. Qa3 {[%clk 0:01:37.2]} 16... Bh7 {[%clk 0:01:03.3]}
17. Rc1 {[%clk 0:01:19.6]} 17... Ne4 {[%clk 0:01:03.5]} 18. Nd3 {[%clk
0:00:57.4]} 18... Nxd6 {[%clk 0:01:00.5]} 19. Nxb4 {[%clk 0:00:57.8]} 19... axb4
{[%clk 0:00:59.4]} 20. Qxb4 {[%clk 0:00:58.7]} 20... Ne4 {[%clk 0:00:50.8]} 21.
Qxb7 {[%clk 0:00:58.8]} 21... O-O {[%clk 0:00:50.8]} 22. Qxc6 {[%clk 0:00:53.4]}
22... Qa5+ {[%clk 0:00:50.2]} 23. Rc3 {[%clk 0:00:48.6]} 23... Nxc3 {[%clk
0:00:48.4]} 24. bxc3 {[%clk 0:00:49.5]} 24... Qxc3+ {[%clk 0:00:48.9]} 25. Ke2
{[%clk 0:00:50.1]} 25... Qc2+ {[%clk 0:00:48.1]} 26. Kf3 {[%clk 0:00:46.7]}
26... Qe4+ {[%clk 0:00:48.2]} 27. Kg3 {[%clk 0:00:46.6]} 27... Qxh1 {[%clk
0:00:49.1]} 28. Bg2 {[%clk 0:00:45.3]} 28... Qa1 {[%clk 0:00:48.7]} 29. Qd6
{[%clk 0:00:44.3]} 29... Qxa4 {[%clk 0:00:48.5]} 30. h4 {[%clk 0:00:44.8]} 30...
Qa6 {[%clk 0:00:47.6]} 31. Qf4 {[%clk 0:00:44]} 31... Be4 {[%clk 0:00:44.6]} 32.
f3 {[%clk 0:00:43.3]} 32... Bh7 {[%clk 0:00:44.5]} 33. g5 {[%clk 0:00:43.7]}
33... hxg5 {[%clk 0:00:44.3]} 34. Qxg5 {[%clk 0:00:42.5]} 34... Qa5 {[%clk
0:00:43.8]} 35. h5 {[%clk 0:00:41.7]} 35... Qd8 {[%clk 0:00:44.2]} 36. Qg4
{[%clk 0:00:36.9]} 36... Qf6 {[%clk 0:00:44.6]} 37. e4 {[%clk 0:00:37.3]} 37...
Qxd4 {[%clk 0:00:43.3]} 38. c6 {[%clk 0:00:37]} 38... dxe4 {[%clk 0:00:41.4]}
39. fxe4 {[%clk 0:00:37.2]} 39... Qe5+ {[%clk 0:00:40.5]} 40. Kh3 {[%clk
0:00:34.1]} 40... Ra3+ {[%clk 0:00:40.4]} 41. Bf3 {[%clk 0:00:33.6]} 41... Bxe4
{[%clk 0:00:39.4]} 42. h6 {[%clk 0:00:34.2]} 42... Rxf3+ {[%clk 0:00:38.8]} 43.
Kh4 {[%clk 0:00:34.6]} 43... Qf6+ {[%clk 0:00:38.9]} 44. Kh5 {[%clk 0:00:34.5]}
44... Bg6+ {[%clk 0:00:39.1]} 45. Qxg6 {[%clk 0:00:34.4]} 45... fxg6+ {[%clk
0:00:39.5]} 46. Kg4 {[%clk 0:00:34.5]} 46... Qf4# {[%clk 0:00:40.3]} 0-1

[Event "*** Titled Tuesday Blitz"]
[Site "Chess.com"]
[Date "2020.03.03"]
[Round "7"]
[White "Supernotar"]
[Black "Indianlad"]
[Result "1-0"]
[WhiteElo "2822"]
[BlackElo "2928"]
[TimeControl "180+1"]
[EndTime "14:15:36 PST"]
[Termination "Supernotar won by checkmate"]

1. d4 {[%clk 0:03:00.9]} 1... Nf6 {[%clk 0:03:00.3]} 2. c4 {[%clk 0:03:01]} 2...
g6 {[%clk 0:03:00.7]} 3. Nc3 {[%clk 0:02:59.7]} 3... Bg7 {[%clk 0:03:01.3]} 4.
e4 {[%clk 0:02:59.5]} 4... O-O {[%clk 0:03:01.9]} 5. Be2 {[%clk 0:03:00]} 5...
d6 {[%clk 0:03:02]} 6. Nf3 {[%clk 0:03:00.2]} 6... c5 {[%clk 0:03:00.8]} 7. d5
{[%clk 0:02:58.6]} 7... Bg4 {[%clk 0:02:52]} 8. O-O {[%clk 0:02:57.6]} 8... Nfd7
{[%clk 0:02:51.9]} 9. h3 {[%clk 0:02:50.9]} 9... Bxf3 {[%clk 0:02:51.9]} 10.
Bxf3 {[%clk 0:02:51.8]} 10... Na6 {[%clk 0:02:52.4]} 11. Be2 {[%clk 0:02:48.8]}
11... Nc7 {[%clk 0:02:52.8]} 12. Qc2 {[%clk 0:02:44.2]} 12... a6 {[%clk
0:02:52]} 13. a4 {[%clk 0:02:43.6]} 13... Bd4 {[%clk 0:02:52]} 14. Bh6 {[%clk
0:02:24.4]} 14... Re8 {[%clk 0:02:51]} 15. Kh1 {[%clk 0:02:09.7]} 15... e5
{[%clk 0:02:47]} 16. Qd2 {[%clk 0:01:55.2]} 16... Rb8 {[%clk 0:02:39.1]} 17. Bd3
{[%clk 0:01:52.7]} 17... f6 {[%clk 0:02:35.6]} 18. Ne2 {[%clk 0:01:40.5]} 18...
g5 {[%clk 0:02:35.2]} 19. Ng3 {[%clk 0:01:37.2]} 19... Nf8 {[%clk 0:02:24.3]}
20. h4 {[%clk 0:01:32]} 20... gxh4 {[%clk 0:02:21.9]} 21. Nf5 {[%clk 0:01:29.1]}
21... Ng6 {[%clk 0:02:21.8]} 22. Be2 {[%clk 0:01:26.4]} 22... Kh8 {[%clk
0:02:21.5]} 23. Ra3 {[%clk 0:01:25.6]} 23... Rg8 {[%clk 0:02:21.1]} 24. Rh3
{[%clk 0:01:22.3]} 24... b5 {[%clk 0:02:19.7]} 25. axb5 {[%clk 0:01:21.1]} 25...
axb5 {[%clk 0:02:20.6]} 26. cxb5 {[%clk 0:01:17.7]} 26... Nxb5 {[%clk 0:02:21]}
27. Bh5 {[%clk 0:01:11.2]} 27... Nc7 {[%clk 0:02:14.4]} 28. b3 {[%clk 0:01:08]}
28... Rb7 {[%clk 0:01:56.9]} 29. Bxg6 {[%clk 0:01:01.2]} 29... Rxg6 {[%clk
0:01:56.4]} 30. Nxh4 {[%clk 0:00:59.3]} 30... Rg4 {[%clk 0:01:51.5]} 31. Qe2
{[%clk 0:00:54.2]} 31... Qd7 {[%clk 0:01:45.4]} 32. Nf5 {[%clk 0:00:49.5]} 32...
Rg6 {[%clk 0:01:44.9]} 33. Qh5 {[%clk 0:00:46.6]} 33... Rb8 {[%clk 0:01:03.7]}
34. g3 {[%clk 0:00:31.9]} 34... Kg8 {[%clk 0:01:01.9]} 35. Kg2 {[%clk
0:00:29.7]} 35... Rxb3 {[%clk 0:01:00.5]} 36. Bc1 {[%clk 0:00:22.9]} 36... c4
{[%clk 0:00:47.5]} 37. Rfh1 {[%clk 0:00:22.5]} 37... Ne8 {[%clk 0:00:39.1]} 38.
Qxg6+ {[%clk 0:00:20.4]} 38... hxg6 {[%clk 0:00:35.1]} 39. Rh8+ {[%clk
0:00:20.1]} 39... Kf7 {[%clk 0:00:35.6]} 40. R1h7+ {[%clk 0:00:19.1]} 40... Ng7
{[%clk 0:00:36.2]} 41. Rxg7# {[%clk 0:00:18.9]} 1-0

[Event "*** Titled Tuesday Blitz"]
[Site "Chess.com"]
[Date "2020.03.03"]
[Round "7"]
[White "rasmussvane"]
[Black "Tayson_7"]
[Result "0-1"]
[WhiteElo "2885"]
[BlackElo "2728"]
[TimeControl "180+1"]
[EndTime "14:15:39 PST"]
[Termination "Tayson_7 won on time"]

1. Nf3 {[%clk 0:03:00.9]} 1... Nf6 {[%clk 0:02:59.3]} 2. g3 {[%clk 0:03:00.8]}
2... d5 {[%clk 0:02:57.8]} 3. Bg2 {[%clk 0:03:00.9]} 3... Bg4 {[%clk 0:02:58.4]}
4. O-O {[%clk 0:03:00.8]} 4... Nbd7 {[%clk 0:02:58.9]} 5. h3 {[%clk 0:03:01.2]}
5... Bh5 {[%clk 0:02:58.1]} 6. c4 {[%clk 0:03:00.4]} 6... Bxf3 {[%clk
0:02:53.6]} 7. exf3 {[%clk 0:02:42.7]} 7... dxc4 {[%clk 0:02:52.5]} 8. Qa4
{[%clk 0:02:39.7]} 8... e6 {[%clk 0:02:47.4]} 9. Qxc4 {[%clk 0:02:39.3]} 9...
Nb6 {[%clk 0:02:39.1]} 10. Qc2 {[%clk 0:02:37.6]} 10... Be7 {[%clk 0:02:37.1]}
11. f4 {[%clk 0:02:38]} 11... O-O {[%clk 0:02:37.1]} 12. Bxb7 {[%clk 0:02:36.9]}
12... Rb8 {[%clk 0:02:34.6]} 13. Bg2 {[%clk 0:02:36.8]} 13... c5 {[%clk
0:02:34]} 14. Nc3 {[%clk 0:02:35.4]} 14... Qd7 {[%clk 0:02:33]} 15. Rd1 {[%clk
0:02:29.7]} 15... Rfd8 {[%clk 0:02:28.6]} 16. d3 {[%clk 0:02:29.8]} 16... Nfd5
{[%clk 0:02:26]} 17. Nxd5 {[%clk 0:02:28.6]} 17... Nxd5 {[%clk 0:02:25.5]} 18.
a3 {[%clk 0:02:28.6]} 18... h6 {[%clk 0:02:18.7]} 19. Bd2 {[%clk 0:02:24.2]}
19... Bf6 {[%clk 0:02:18.6]} 20. Bc3 {[%clk 0:02:21.7]} 20... Nxc3 {[%clk
0:02:13.8]} 21. bxc3 {[%clk 0:02:21.7]} 21... Qc7 {[%clk 0:02:13.5]} 22. Rab1
{[%clk 0:01:44.9]} 22... Qa5 {[%clk 0:02:10.3]} 23. Rb7 {[%clk 0:01:42.9]} 23...
Rxb7 {[%clk 0:02:07]} 24. Bxb7 {[%clk 0:01:43.8]} 24... Qxa3 {[%clk 0:02:07.4]}
25. c4 {[%clk 0:01:37.4]} 25... a5 {[%clk 0:02:02.2]} 26. Bc6 {[%clk 0:01:36.3]}
26... Rd6 {[%clk 0:01:56.1]} 27. Bb5 {[%clk 0:01:35]} 27... Qb4 {[%clk
0:01:45.7]} 28. Kg2 {[%clk 0:01:32.3]} 28... g6 {[%clk 0:01:44]} 29. Qa2 {[%clk
0:01:18.6]} 29... Qc3 {[%clk 0:01:40.1]} 30. Qe2 {[%clk 0:01:09.9]} 30... Qb3
{[%clk 0:01:39.9]} 31. Qf3 {[%clk 0:01:07.8]} 31... Kg7 {[%clk 0:01:36.5]} 32.
Rd2 {[%clk 0:01:04.5]} 32... a4 {[%clk 0:01:36.4]} 33. Qa8 {[%clk 0:00:58.8]}
33... a3 {[%clk 0:01:36.1]} 34. Qa7 {[%clk 0:00:57]} 34... Rd8 {[%clk 0:01:24]}
35. h4 {[%clk 0:00:18.6]} 35... h5 {[%clk 0:01:23.3]} 36. Bc6 {[%clk 0:00:09.3]}
36... Bb2 {[%clk 0:01:13.9]} 37. Qe7 {[%clk 0:00:05.2]} 37... a2 {[%clk
0:00:52.9]} 0-1

[Event "*** Titled Tuesday Blitz"]
[Site "Chess.com"]
[Date "2020.03.03"]
[Round "7"]
[White "AnkitGajwa"]
[Black "Pechen_Yeltsina"]
[Result "1-0"]
[WhiteElo "2507"]
[BlackElo "2693"]
[TimeControl "180+1"]
[EndTime "14:15:47 PST"]
[Termination "AnkitGajwa won on time"]

1. e4 {[%clk 0:02:39.8]} 1... g6 {[%clk 0:03:00.9]} 2. d4 {[%clk 0:02:39.6]}
2... Bg7 {[%clk 0:03:01.5]} 3. Nc3 {[%clk 0:02:40.2]} 3... d6 {[%clk 0:03:02]}
4. Nf3 {[%clk 0:02:40.7]} 4... a6 {[%clk 0:03:02.4]} 5. Be3 {[%clk 0:02:40.5]}
5... Nd7 {[%clk 0:03:02.2]} 6. Qd2 {[%clk 0:02:41]} 6... b5 {[%clk 0:03:02.6]}
7. Bd3 {[%clk 0:02:40.9]} 7... Bb7 {[%clk 0:03:02.8]} 8. Ne2 {[%clk 0:02:40.9]}
8... Ngf6 {[%clk 0:03:01.8]} 9. Ng3 {[%clk 0:02:41]} 9... c5 {[%clk 0:02:59.7]}
10. c3 {[%clk 0:02:40.9]} 10... cxd4 {[%clk 0:03:00.1]} 11. cxd4 {[%clk
0:02:39.9]} 11... O-O {[%clk 0:02:56.1]} 12. O-O {[%clk 0:02:39.4]} 12... e5
{[%clk 0:02:48.3]} 13. d5 {[%clk 0:02:38.7]} 13... Ng4 {[%clk 0:02:45]} 14. Bg5
{[%clk 0:02:34.1]} 14... Bf6 {[%clk 0:02:44.6]} 15. h3 {[%clk 0:02:27.4]} 15...
Bxg5 {[%clk 0:02:42.8]} 16. Nxg5 {[%clk 0:02:27.7]} 16... Ngf6 {[%clk
0:02:39.9]} 17. f4 {[%clk 0:02:27.9]} 17... exf4 {[%clk 0:02:37.2]} 18. Qxf4
{[%clk 0:02:27.5]} 18... Qe7 {[%clk 0:02:33.5]} 19. Qh4 {[%clk 0:02:12]} 19...
h5 {[%clk 0:02:29]} 20. Rf2 {[%clk 0:01:44.2]} 20... Ne5 {[%clk 0:02:25.2]} 21.
Be2 {[%clk 0:01:38.9]} 21... Nh7 {[%clk 0:02:25]} 22. Nxh5 {[%clk 0:01:12.6]}
22... gxh5 {[%clk 0:02:18.5]} 23. Rf5 {[%clk 0:01:12.1]} 23... Nxg5 {[%clk
0:02:09.5]} 24. Rxg5+ {[%clk 0:01:11]} 24... Ng6 {[%clk 0:02:08.9]} 25. Rxg6+
{[%clk 0:01:11.2]} 25... fxg6 {[%clk 0:02:09.6]} 26. Qxe7 {[%clk 0:01:11.3]}
26... Rf7 {[%clk 0:02:10.5]} 27. Qxd6 {[%clk 0:01:10.9]} 27... Kg7 {[%clk
0:02:02.5]} 28. Rf1 {[%clk 0:01:10.6]} 28... Rxf1+ {[%clk 0:02:01.3]} 29. Bxf1
{[%clk 0:01:11.5]} 29... Rd8 {[%clk 0:02:00.6]} 30. Qe7+ {[%clk 0:01:11.1]}
30... Kh6 {[%clk 0:02:00.2]} 31. Qxd8 {[%clk 0:01:11.3]} 31... b4 {[%clk
0:01:57.7]} 32. e5 {[%clk 0:01:11.5]} 32... Kg7 {[%clk 0:01:58.4]} 33. Bd3
{[%clk 0:01:11.4]} 33... Bxd5 {[%clk 0:01:58.1]} 34. Qf6+ {[%clk 0:01:12.3]}
34... Kg8 {[%clk 0:01:57.6]} 35. e6 {[%clk 0:01:12.7]} 35... Bxe6 {[%clk
0:01:57.4]} 36. Qxe6+ {[%clk 0:01:13.1]} 36... Kg7 {[%clk 0:01:58.3]} 37. Bxg6
{[%clk 0:01:13.3]} 37... Kh6 {[%clk 0:01:57.4]} 38. h4 {[%clk 0:01:13.6]} 38...
Kg7 {[%clk 0:01:56.3]} 39. Qf7+ {[%clk 0:01:13.4]} 1-0

[Event "*** Titled Tuesday Blitz"]
[Site "Chess.com"]
[Date "2020.03.03"]
[Round "7"]
[White "Everyfishknows"]
[Black "NTBT_DHS"]
[Result "0-1"]
[WhiteElo "2408"]
[BlackElo "2676"]
[TimeControl "180+1"]
[EndTime "14:15:48 PST"]
[Termination "NTBT_DHS won on time"]

1. d4 {[%clk 0:03:00.9]} 1... Nf6 {[%clk 0:02:59.6]} 2. c4 {[%clk 0:02:58.7]}
2... g6 {[%clk 0:03:00.5]} 3. Nc3 {[%clk 0:02:57.9]} 3... Bg7 {[%clk 0:03:01]}
4. e4 {[%clk 0:02:57.5]} 4... O-O {[%clk 0:03:01.9]} 5. Nf3 {[%clk 0:02:57.4]}
5... d6 {[%clk 0:03:02.4]} 6. Be2 {[%clk 0:02:57.6]} 6... e5 {[%clk 0:03:02.9]}
7. O-O {[%clk 0:02:57.7]} 7... Nc6 {[%clk 0:03:03.3]} 8. Be3 {[%clk 0:02:57.2]}
8... Ng4 {[%clk 0:03:03]} 9. Bg5 {[%clk 0:02:56.7]} 9... f6 {[%clk 0:03:03.4]}
10. Bc1 {[%clk 0:02:57]} 10... h5 {[%clk 0:02:53.5]} 11. d5 {[%clk 0:02:45.6]}
11... Ne7 {[%clk 0:02:52.2]} 12. h3 {[%clk 0:02:44.8]} 12... Nh6 {[%clk
0:02:52]} 13. Be3 {[%clk 0:02:44.8]} 13... f5 {[%clk 0:02:27.1]} 14. exf5 {[%clk
0:02:43]} 14... Nexf5 {[%clk 0:02:20.8]} 15. Bg5 {[%clk 0:02:39.8]} 15... Qe8
{[%clk 0:02:20.9]} 16. Ne4 {[%clk 0:02:36.4]} 16... Bd7 {[%clk 0:02:06.1]} 17.
Qd2 {[%clk 0:02:15.1]} 17... Kh8 {[%clk 0:01:44.1]} 18. Rae1 {[%clk 0:02:06.1]}
18... Ng8 {[%clk 0:01:31]} 19. Bd3 {[%clk 0:01:29.7]} 19... Qf7 {[%clk
0:01:24.9]} 20. Qc2 {[%clk 0:00:54.7]} 20... Nf6 {[%clk 0:01:14.9]} 21. Bd2
{[%clk 0:00:39.5]} 21... Nxe4 {[%clk 0:01:06.3]} 22. Bxe4 {[%clk 0:00:39.3]}
22... Rae8 {[%clk 0:01:02.5]} 23. Ng5 {[%clk 0:00:38.5]} 23... Qf6 {[%clk
0:01:01.9]} 24. Qd3 {[%clk 0:00:22.8]} 24... Bh6 {[%clk 0:00:57.2]} 25. Nf3
{[%clk 0:00:19.9]} 25... Bxd2 {[%clk 0:00:53.6]} 26. Qxd2 {[%clk 0:00:20.8]}
26... Kg7 {[%clk 0:00:45.1]} 27. Ng5 {[%clk 0:00:13.6]} 27... Nd4 {[%clk
0:00:42.9]} 28. Nf3 {[%clk 0:00:08.1]} 28... Nxf3+ {[%clk 0:00:40.3]} 29. Bxf3
{[%clk 0:00:09]} 29... Bxh3 {[%clk 0:00:40.4]} 30. Bxh5 {[%clk 0:00:09.3]} 30...
Bf5 {[%clk 0:00:33.4]} 31. Bf3 {[%clk 0:00:07.7]} 31... Rh8 {[%clk 0:00:31.6]}
32. g3 {[%clk 0:00:05.2]} 32... Bh3 {[%clk 0:00:30.9]} 33. Bg2 {[%clk
0:00:05.6]} 33... Qf5 {[%clk 0:00:29.3]} 0-1

[Event "*** Titled Tuesday Blitz"]
[Site "Chess.com"]
[Date "2020.03.03"]
[Round "7"]
[White "Mikhail_Golubev"]
[Black "cottage_cheese"]
[Result "1-0"]
[WhiteElo "2497"]
[BlackElo "2339"]
[TimeControl "180+1"]
[EndTime "14:15:48 PST"]
[Termination "Mikhail_Golubev won by resignation"]

1. e4 {[%clk 0:03:00.9]} 1... e6 {[%clk 0:02:55.5]} 2. d4 {[%clk 0:03:00.3]}
2... d5 {[%clk 0:02:55.5]} 3. Nc3 {[%clk 0:03:00.2]} 3... Nf6 {[%clk 0:02:54.4]}
4. Bg5 {[%clk 0:02:59.2]} 4... dxe4 {[%clk 0:02:53.4]} 5. Nxe4 {[%clk
0:02:59.1]} 5... Be7 {[%clk 0:02:53.9]} 6. Bxf6 {[%clk 0:02:59.1]} 6... gxf6
{[%clk 0:02:53.6]} 7. Qd3 {[%clk 0:02:59.1]} 7... b6 {[%clk 0:02:14.8]} 8. O-O-O
{[%clk 0:02:58.4]} 8... Bb7 {[%clk 0:02:14.1]} 9. Nf3 {[%clk 0:02:55.6]} 9... f5
{[%clk 0:02:10.4]} 10. Nc3 {[%clk 0:02:53]} 10... Nc6 {[%clk 0:02:07.9]} 11. d5
{[%clk 0:02:48.5]} 11... Nb4 {[%clk 0:02:04.6]} 12. Qd4 {[%clk 0:02:47.7]} 12...
O-O {[%clk 0:01:48.8]} 13. dxe6 {[%clk 0:02:36.7]} 13... Qxd4 {[%clk 0:01:31.5]}
14. exf7+ {[%clk 0:02:33.1]} 14... Rxf7 {[%clk 0:01:27.1]} 15. Nxd4 {[%clk
0:02:30.6]} 15... Rd8 {[%clk 0:01:15.2]} 16. Bc4 {[%clk 0:02:26.9]} 16... Nd5
{[%clk 0:01:14.6]} 17. Nf3 {[%clk 0:01:45.4]} 17... c6 {[%clk 0:01:07.5]} 18.
Ne5 {[%clk 0:01:45.4]} 18... Bg5+ {[%clk 0:01:03.6]} 19. Kb1 {[%clk 0:01:44.1]}
19... Rc7 {[%clk 0:00:40.6]} 20. Nxc6 {[%clk 0:01:39]} 20... Bxc6 {[%clk
0:00:40.3]} 21. Nxd5 {[%clk 0:01:21.8]} 21... Bxd5 {[%clk 0:00:35.5]} 22. Rxd5
{[%clk 0:01:17.8]} 22... Rxd5 {[%clk 0:00:31.5]} 23. Bxd5+ {[%clk 0:01:17.3]}
23... Kg7 {[%clk 0:00:32.3]} 24. Re1 {[%clk 0:01:07]} 24... Bf4 {[%clk
0:00:27.9]} 25. g3 {[%clk 0:01:04.1]} 25... Bg5 {[%clk 0:00:23.5]} 26. f4 {[%clk
0:01:02.3]} 26... Bf6 {[%clk 0:00:23.4]} 27. Be6 {[%clk 0:00:52.4]} 27... Rc5
{[%clk 0:00:22]} 28. Kc1 {[%clk 0:00:47.2]} 28... h5 {[%clk 0:00:20.4]} 29. h4
{[%clk 0:00:40.8]} 29... Bd4 {[%clk 0:00:19.5]} 30. c3 {[%clk 0:00:37.4]} 30...
Bf2 {[%clk 0:00:19.1]} 31. Re2 {[%clk 0:00:37.6]} 31... Bxg3 {[%clk 0:00:17.3]}
32. Rg2 {[%clk 0:00:36.8]} 32... Kf6 {[%clk 0:00:18.2]} 33. Rxg3 {[%clk
0:00:30.2]} 33... Kxe6 {[%clk 0:00:17.9]} 34. Rg5 {[%clk 0:00:29.8]} 34... Rd5
{[%clk 0:00:15.3]} 35. Rxh5 {[%clk 0:00:28.7]} 35... Rd3 {[%clk 0:00:15.8]} 36.
Rh7 {[%clk 0:00:26.1]} 36... Rf3 {[%clk 0:00:15.1]} 37. Rxa7 {[%clk 0:00:25.5]}
37... Rxf4 {[%clk 0:00:15.2]} 38. Rb7 {[%clk 0:00:26]} 38... Rxh4 {[%clk
0:00:13.7]} 39. Rxb6+ {[%clk 0:00:25.7]} 39... Ke5 {[%clk 0:00:14.1]} 40. Rb5+
{[%clk 0:00:25]} 40... Ke4 {[%clk 0:00:13.3]} 41. Rb4+ {[%clk 0:00:24.7]} 1-0

[Event "*** Titled Tuesday Blitz"]
[Site "Chess.com"]
[Date "2020.03.03"]
[Round "7"]
[White "Galiev_Azat"]
[Black "Gogolev_Artemy"]
[Result "0-1"]
[WhiteElo "2266"]
[BlackElo "2458"]
[TimeControl "180+1"]
[EndTime "14:15:48 PST"]
[Termination "Gogolev_Artemy won on time"]

1. d4 {[%clk 0:03:00.9]} 1... Nf6 {[%clk 0:02:52.5]} 2. Bf4 {[%clk 0:02:59.9]}
2... g6 {[%clk 0:02:51.2]} 3. e3 {[%clk 0:03:00.1]} 3... Bg7 {[%clk 0:02:51.1]}
4. Nf3 {[%clk 0:02:53.9]} 4... d6 {[%clk 0:02:49.6]} 5. h3 {[%clk 0:02:53.7]}
5... O-O {[%clk 0:02:49.7]} 6. Be2 {[%clk 0:02:51]} 6... c5 {[%clk 0:02:49.8]}
7. O-O {[%clk 0:02:40.1]} 7... Qb6 {[%clk 0:02:45.1]} 8. Nc3 {[%clk 0:01:58]}
8... cxd4 {[%clk 0:02:38.7]} 9. exd4 {[%clk 0:01:54.1]} 9... Nc6 {[%clk
0:02:37.8]} 10. d5 {[%clk 0:01:20.8]} 10... Qxb2 {[%clk 0:02:17.3]} 11. Qd2
{[%clk 0:00:46.8]} 11... Nh5 {[%clk 0:02:07.3]} 12. Nb5 {[%clk 0:00:30.6]} 12...
Nxf4 {[%clk 0:02:01]} 13. Qxf4 {[%clk 0:00:13.8]} 13... Ne5 {[%clk 0:02:00.3]}
14. Rab1 {[%clk 0:00:05.5]} 14... Qxc2 {[%clk 0:01:53.2]} 15. Nfd4 {[%clk
0:00:05.5]} 15... Qxa2 {[%clk 0:01:47.8]} 16. Ra1 {[%clk 0:00:05]} 16... Qxd5
{[%clk 0:01:38.5]} 17. Nc7 {[%clk 0:00:04.7]} 17... g5 {[%clk 0:01:11.8]} 18.
Qd2 {[%clk 0:00:03.2]} 18... Nc4 {[%clk 0:00:58.3]} 19. Bxc4 {[%clk 0:00:01.6]}
19... Qxc4 {[%clk 0:00:57.5]} 20. Nxa8 {[%clk 0:00:01.2]} 20... Qxd4 {[%clk
0:00:55.7]} 21. Qxd4 {[%clk 0:00:01.3]} 21... Bxd4 {[%clk 0:00:56.6]} 22. Rac1
{[%clk 0:00:01.8]} 22... Bc5 {[%clk 0:00:51]} 23. Rfd1 {[%clk 0:00:02.1]} 23...
Bxh3 {[%clk 0:00:39.8]} 24. Nc7 {[%clk 0:00:02.4]} 24... Bg4 {[%clk 0:00:38]}
25. Nd5 {[%clk 0:00:02.5]} 25... Bxd1 {[%clk 0:00:37.4]} 26. Nxe7+ {[%clk
0:00:03.2]} 26... Kg7 {[%clk 0:00:36.7]} 27. Rxd1 {[%clk 0:00:04.1]} 27... Re8
{[%clk 0:00:36.2]} 28. Nf5+ {[%clk 0:00:04.1]} 28... Kf6 {[%clk 0:00:35.7]} 29.
g4 {[%clk 0:00:04.3]} 29... Re2 {[%clk 0:00:33]} 30. Nxd6 {[%clk 0:00:04.5]}
30... Bxd6 {[%clk 0:00:29.1]} 31. Rxd6+ {[%clk 0:00:04.1]} 31... Re6 {[%clk
0:00:29.6]} 32. Rd7 {[%clk 0:00:04.2]} 32... Rb6 {[%clk 0:00:27]} 33. Rd8 {[%clk
0:00:04]} 33... a5 {[%clk 0:00:26.5]} 34. Kg2 {[%clk 0:00:04.2]} 34... a4 {[%clk
0:00:26.4]} 35. Rd4 {[%clk 0:00:03.4]} 35... a3 {[%clk 0:00:25.6]} 36. Ra4
{[%clk 0:00:03.3]} 36... Ra6 {[%clk 0:00:25.7]} 37. Rb4 {[%clk 0:00:03.7]} 37...
a2 {[%clk 0:00:25.3]} 38. Rxb7 {[%clk 0:00:04.1]} 38... a1=Q {[%clk 0:00:25.2]}
0-1

[Event "*** Titled Tuesday Blitz"]
[Site "Chess.com"]
[Date "2020.03.03"]
[Round "7"]
[White "goldenspine"]
[Black "davserr65"]
[Result "0-1"]
[WhiteElo "2333"]
[BlackElo "2097"]
[TimeControl "180+1"]
[EndTime "14:15:52 PST"]
[Termination "davserr65 won on time"]

1. d4 {[%clk 0:03:00.9]} 1... Nf6 {[%clk 0:02:59.4]} 2. c4 {[%clk 0:03:00.5]}
2... g6 {[%clk 0:02:59.8]} 3. Nc3 {[%clk 0:02:59.9]} 3... d5 {[%clk 0:03:00]} 4.
cxd5 {[%clk 0:02:59.7]} 4... Nxd5 {[%clk 0:02:59.4]} 5. e4 {[%clk 0:03:00.6]}
5... Nb6 {[%clk 0:02:59.6]} 6. a4 {[%clk 0:02:57.1]} 6... a5 {[%clk 0:02:58.2]}
7. Be3 {[%clk 0:02:53.7]} 7... Bg7 {[%clk 0:02:58.1]} 8. h3 {[%clk 0:02:37.7]}
8... O-O {[%clk 0:02:57.6]} 9. Nf3 {[%clk 0:02:37.7]} 9... Nc6 {[%clk
0:02:55.2]} 10. Be2 {[%clk 0:02:32.6]} 10... f5 {[%clk 0:02:54.8]} 11. Qb3+
{[%clk 0:02:20.3]} 11... Kh8 {[%clk 0:02:52.1]} 12. d5 {[%clk 0:02:16.9]} 12...
Nb4 {[%clk 0:02:36.1]} 13. exf5 {[%clk 0:01:51]} 13... Bxf5 {[%clk 0:02:35.2]}
14. O-O {[%clk 0:01:47.6]} 14... N4xd5 {[%clk 0:02:22.3]} 15. Rad1 {[%clk
0:01:46.7]} 15... c6 {[%clk 0:02:18.7]} 16. Ng5 {[%clk 0:01:17]} 16... h6 {[%clk
0:02:12.3]} 17. Nge4 {[%clk 0:01:16.1]} 17... Qc7 {[%clk 0:01:46]} 18. Bd4
{[%clk 0:01:08.2]} 18... e5 {[%clk 0:01:39.5]} 19. Bc5 {[%clk 0:01:07.3]} 19...
Rfd8 {[%clk 0:01:31.8]} 20. Nd6 {[%clk 0:00:57.4]} 20... Nxc3 {[%clk 0:01:01.7]}
21. bxc3 {[%clk 0:00:51.2]} 21... Nd5 {[%clk 0:00:41.7]} 22. c4 {[%clk
0:00:35.6]} 22... Nf4 {[%clk 0:00:31.5]} 23. Bf3 {[%clk 0:00:28]} 23... Rdb8
{[%clk 0:00:19.1]} 24. Bb6 {[%clk 0:00:23.1]} 24... Qe7 {[%clk 0:00:16.4]} 25.
c5 {[%clk 0:00:23.1]} 25... Kh7 {[%clk 0:00:15]} 26. Qe3 {[%clk 0:00:18.1]}
26... g5 {[%clk 0:00:12.1]} 27. Rfe1 {[%clk 0:00:18.2]} 27... Bg6 {[%clk
0:00:11.8]} 28. Bg4 {[%clk 0:00:17.2]} 28... Rf8 {[%clk 0:00:10.5]} 29. Nc4
{[%clk 0:00:12.8]} 29... Qf6 {[%clk 0:00:09.8]} 30. Rd6 {[%clk 0:00:12]} 30...
Qf7 {[%clk 0:00:10.1]} 31. Rd7 {[%clk 0:00:11.1]} 31... Qxc4 {[%clk 0:00:09.5]}
32. Qxe5 {[%clk 0:00:09.7]} 32... Rf7 {[%clk 0:00:07.6]} 33. Rxf7 {[%clk
0:00:03.2]} 33... Qxf7 {[%clk 0:00:07.5]} 34. g3 {[%clk 0:00:03.3]} 34... Bxe5
{[%clk 0:00:07.2]} 0-1